[Event "Titled Tuesday Blitz August 08 Late 2023"]
[White "Kostiukov, Alexandr"]
[Black "Perske, Thore"]
[WhiteFideId "14108100"]
[BlackFideId "12902195"]
[WhiteElo "2377"]
[BlackElo "2529"]
[Result "0-1"]
[Round "8"]
[TimeControl "180+1"]
[Date "2023.08.08"]
[WhiteClock "0:00:00"]
[BlackClock "0:00:09"]
[Board "77"]

1. g3 {[%clk 0:02:51]}  d5 {[%clk 0:02:59]} 2. Bg2 {[%clk 0:02:50]}  g6 {[%clk 0:03:00]} 3. c4 {[%clk 0:02:48]}  dxc4 {[%clk 0:02:59]} 4. Qa4+ {[%clk 0:02:48]}  Bd7 {[%clk 0:02:53]} 5. Qxc4 {[%clk 0:02:47]}  Nc6 {[%clk 0:02:50]} 6. Nf3 {[%clk 0:02:46]}  e5 {[%clk 0:02:39]} 7. O-O {[%clk 0:02:29]}  Bg7 {[%clk 0:02:38]} 8. Nc3 {[%clk 0:02:24]}  Nge7 {[%clk 0:02:31]} 9. d3 {[%clk 0:02:06]}  O-O {[%clk 0:02:30]} 10. Bg5 {[%clk 0:02:05]}  h6 {[%clk 0:02:27]} 11. Be3 {[%clk 0:02:04]}  Be6 {[%clk 0:02:25]} 12. Qb5 {[%clk 0:02:02]}  Rb8 {[%clk 0:02:04]} 13. Rad1 {[%clk 0:01:47]}  a6 {[%clk 0:01:57]} 14. Qa4 {[%clk 0:01:45]}  Nf5 {[%clk 0:01:46]} 15. Bc5 {[%clk 0:01:44]}  Re8 {[%clk 0:01:44]} 16. e3 {[%clk 0:01:30]}  Qd7 {[%clk 0:01:34]} 17. Ne4 {[%clk 0:01:01]}  b6 {[%clk 0:01:06]} 18. Ba3 {[%clk 0:00:41]}  b5 {[%clk 0:00:48]} 19. Qxa6 {[%clk 0:00:36]}  b4 {[%clk 0:00:48]} 20. Nc5 {[%clk 0:00:36]}  Qd6 {[%clk 0:00:36]} 21. Ne4 {[%clk 0:00:21]}  Qd5 {[%clk 0:00:34]} 22. Nfd2 {[%clk 0:00:14]}  Qxa2 {[%clk 0:00:25]} 23. Qxc6 {[%clk 0:00:12]}  bxa3 {[%clk 0:00:25]} 24. bxa3 {[%clk 0:00:12]}  Qxa3 {[%clk 0:00:23]} 25. Nc4 {[%clk 0:00:03]}  Qe7 {[%clk 0:00:19]} 26. Nc5 {[%clk 0:00:01]}  Bc8 {[%clk 0:00:13]} 27. e4 {[%clk 0:00:01]}  Nd4 {[%clk 0:00:12]} 28. Qa4 {[%clk 0:00:02]}  Bg4 {[%clk 0:00:11]} 29. Rb1 {[%clk 0:00:00]}  Qxc5 {[%clk 0:00:09]} 0-1


[Site "https://www.chess.com"]

[Event "Titled Tuesday Blitz August 08 Late 2023"]
[White "Smiechu"]
[Black "ElDivis"]
[WhiteElo "2364"]
[BlackElo "2516"]
[Result "0-1"]
[Round "8"]
[TimeControl "180+1"]
[Date "2023.08.08"]
[WhiteClock "0:01:02"]
[BlackClock "0:00:15"]
[Board "78"]

1. e4 {[%clk 0:03:00]}  c5 {[%clk 0:02:59]} 2. Nf3 {[%clk 0:03:00]}  d6 {[%clk 0:02:59]} 3. d4 {[%clk 0:03:00]}  cxd4 {[%clk 0:03:00]} 4. Nxd4 {[%clk 0:03:01]}  Nf6 {[%clk 0:03:01]} 5. Nc3 {[%clk 0:03:01]}  g6 {[%clk 0:03:02]} 6. Be3 {[%clk 0:03:02]}  Bg7 {[%clk 0:03:02]} 7. f3 {[%clk 0:03:02]}  O-O {[%clk 0:03:03]} 8. Qd2 {[%clk 0:03:00]}  Nc6 {[%clk 0:03:04]} 9. Bc4 {[%clk 0:03:01]}  Bd7 {[%clk 0:03:04]} 10. h4 {[%clk 0:03:01]}  Rc8 {[%clk 0:03:04]} 11. Bb3 {[%clk 0:03:01]}  Ne5 {[%clk 0:03:05]} 12. h5 {[%clk 0:02:55]}  Nxh5 {[%clk 0:03:05]} 13. O-O-O {[%clk 0:02:55]}  a5 {[%clk 0:02:48]} 14. g4 {[%clk 0:02:54]}  Ng3 {[%clk 0:02:42]} 15. Qh2 {[%clk 0:02:53]}  Nxh1 {[%clk 0:02:36]} 16. Rxh1 {[%clk 0:02:54]}  h5 {[%clk 0:02:27]} 17. gxh5 {[%clk 0:02:54]}  g5 {[%clk 0:02:26]} 18. h6 {[%clk 0:02:54]}  Bf6 {[%clk 0:02:23]} 19. Nd5 {[%clk 0:02:43]}  a4 {[%clk 0:02:15]} 20. Nxf6+ {[%clk 0:02:36]}  exf6 {[%clk 0:02:16]} 21. Bd5 {[%clk 0:02:36]}  Kh7 {[%clk 0:02:07]} 22. Rg1 {[%clk 0:02:10]}  a3 {[%clk 0:02:02]} 23. f4 {[%clk 0:02:09]}  axb2+ {[%clk 0:01:56]} 24. Kb1 {[%clk 0:02:08]}  Ng4 {[%clk 0:01:43]} 25. Rxg4 {[%clk 0:02:01]}  Bxg4 {[%clk 0:01:44]} 26. fxg5 {[%clk 0:02:00]}  fxg5 {[%clk 0:01:43]} 27. Qg3 {[%clk 0:01:58]}  Be6 {[%clk 0:01:16]} 28. Bxe6 {[%clk 0:01:52]}  fxe6 {[%clk 0:01:14]} 29. Nxe6 {[%clk 0:01:52]}  Rf1+ {[%clk 0:01:11]} 30. Kxb2 {[%clk 0:01:52]}  Qf6+ {[%clk 0:00:30]} 31. Nd4 {[%clk 0:01:52]}  Rc5 {[%clk 0:00:27]} 32. c3 {[%clk 0:01:48]}  Qxh6 {[%clk 0:00:21]} 33. Nf5 {[%clk 0:01:39]}  Qh1 {[%clk 0:00:20]} 34. Bxc5 {[%clk 0:01:05]}  Rb1+ {[%clk 0:00:17]} 35. Ka3 {[%clk 0:01:05]}  Qc1+ {[%clk 0:00:16]} 36. Ka4 {[%clk 0:01:05]}  Qc2+ {[%clk 0:00:16]} 37. Ka3 {[%clk 0:01:03]}  Qb2+ {[%clk 0:00:15]} 38. Ka4 {[%clk 0:01:03]}  Qb5+ {[%clk 0:00:15]} 39. Ka3 {[%clk 0:01:02]}  Qa5# {[%clk 0:00:15]} 0-1


[Site "https://www.chess.com"]

[Event "Titled Tuesday Blitz August 08 Late 2023"]
[White "Dragomirescu, Robin-Alexandru"]
[Black "UgarteCesar"]
[WhiteFideId "1213849"]
[WhiteElo "2508"]
[BlackElo "2340"]
[Result "1-0"]
[Round "8"]
[TimeControl "180+1"]
[Date "2023.08.08"]
[WhiteClock "0:02:54"]
[BlackClock "0:02:43"]
[Board "80"]

1. b3 {[%clk 0:03:00]}  e5 {[%clk 0:02:59]} 2. Bb2 {[%clk 0:03:01]}  Nc6 {[%clk 0:02:59]} 3. e3 {[%clk 0:03:01]}  d6 {[%clk 0:02:58]} 4. Nf3 {[%clk 0:03:01]}  Nge7 {[%clk 0:02:58]} 5. d4 {[%clk 0:03:01]}  f6 {[%clk 0:02:59]} 6. c4 {[%clk 0:02:59]}  Ng6 {[%clk 0:02:53]} 7. Nc3 {[%clk 0:02:58]}  Be7 {[%clk 0:02:53]} 8. h4 {[%clk 0:02:57]}  O-O {[%clk 0:02:52]} 9. h5 {[%clk 0:02:57]}  exd4 {[%clk 0:02:50]} 10. hxg6 {[%clk 0:02:56]}  dxc3 {[%clk 0:02:43]} 11. Qd5+ {[%clk 0:02:54]} 1-0


[Site "https://www.chess.com"]

[Event "Titled Tuesday Blitz August 08 Late 2023"]
[White "Chen, Max"]
[Black "Guzman Moneo, Alberto"]
[WhiteFideId "2622440"]
[BlackFideId "2209616"]
[WhiteElo "2563"]
[BlackElo "2366"]
[Result "1-0"]
[Round "8"]
[TimeControl "180+1"]
[Date "2023.08.08"]
[WhiteClock "0:00:06"]
[BlackClock "0:00:00"]
[Board "82"]

1. e4 {[%clk 0:03:00]}  e6 {[%clk 0:02:59]} 2. d3 {[%clk 0:02:56]}  d5 {[%clk 0:03:00]} 3. Nd2 {[%clk 0:02:55]}  Nf6 {[%clk 0:03:00]} 4. g3 {[%clk 0:02:52]}  Bc5 {[%clk 0:03:00]} 5. Bg2 {[%clk 0:02:51]}  Nc6 {[%clk 0:02:55]} 6. Ngf3 {[%clk 0:02:50]}  dxe4 {[%clk 0:02:53]} 7. dxe4 {[%clk 0:02:49]}  O-O {[%clk 0:02:40]} 8. O-O {[%clk 0:02:49]}  b6 {[%clk 0:02:38]} 9. Qe2 {[%clk 0:02:29]}  e5 {[%clk 0:01:13]} 10. c3 {[%clk 0:02:08]}  a5 {[%clk 0:01:12]} 11. h3 {[%clk 0:01:38]}  Ba6 {[%clk 0:01:08]} 12. Nc4 {[%clk 0:01:38]}  Qe7 {[%clk 0:00:58]} 13. Rd1 {[%clk 0:01:36]}  h6 {[%clk 0:00:55]} 14. Bf1 {[%clk 0:01:23]}  Ne8 {[%clk 0:00:49]} 15. Be3 {[%clk 0:01:15]}  Nd6 {[%clk 0:00:46]} 16. Bxc5 {[%clk 0:01:05]}  bxc5 {[%clk 0:00:47]} 17. Nfd2 {[%clk 0:01:04]}  Qe6 {[%clk 0:00:39]} 18. b3 {[%clk 0:00:52]}  a4 {[%clk 0:00:34]} 19. Qe3 {[%clk 0:00:52]}  axb3 {[%clk 0:00:29]} 20. axb3 {[%clk 0:00:50]}  Nxc4 {[%clk 0:00:21]} 21. Nxc4 {[%clk 0:00:50]}  Bxc4 {[%clk 0:00:20]} 22. Bxc4 {[%clk 0:00:50]}  Rxa1 {[%clk 0:00:19]} 23. Rxa1 {[%clk 0:00:47]}  Qe7 {[%clk 0:00:19]} 24. Ra6 {[%clk 0:00:39]}  Nb8 {[%clk 0:00:18]} 25. Ra8 {[%clk 0:00:38]}  Nd7 {[%clk 0:00:18]} 26. Rxf8+ {[%clk 0:00:37]}  Nxf8 {[%clk 0:00:18]} 27. Qd3 {[%clk 0:00:35]}  Nd7 {[%clk 0:00:18]} 28. Qd5 {[%clk 0:00:35]}  g6 {[%clk 0:00:14]} 29. Qc6 {[%clk 0:00:23]}  Kg7 {[%clk 0:00:13]} 30. Qxc7 {[%clk 0:00:21]}  Kf6 {[%clk 0:00:08]} 31. Bb5 {[%clk 0:00:16]}  Nf8 {[%clk 0:00:07]} 32. Qxe7+ {[%clk 0:00:15]}  Kxe7 {[%clk 0:00:08]} 33. Kf1 {[%clk 0:00:15]}  Ne6 {[%clk 0:00:08]} 34. h4 {[%clk 0:00:13]}  f5 {[%clk 0:00:08]} 35. Ke2 {[%clk 0:00:11]}  f4 {[%clk 0:00:08]} 36. Bc4 {[%clk 0:00:09]}  Nd8 {[%clk 0:00:06]} 37. Kf3 {[%clk 0:00:09]}  g5 {[%clk 0:00:04]} 38. Kg4 {[%clk 0:00:09]}  Kf6 {[%clk 0:00:04]} 39. Kh5 {[%clk 0:00:09]}  Kg7 {[%clk 0:00:05]} 40. hxg5 {[%clk 0:00:10]}  hxg5 {[%clk 0:00:05]} 41. Kxg5 {[%clk 0:00:10]}  fxg3 {[%clk 0:00:06]} 42. fxg3 {[%clk 0:00:11]}  Nb7 {[%clk 0:00:06]} 43. Kf5 {[%clk 0:00:09]}  Nd6+ {[%clk 0:00:07]} 44. Kxe5 {[%clk 0:00:10]}  Ne8 {[%clk 0:00:06]} 45. g4 {[%clk 0:00:07]}  Nf6 {[%clk 0:00:07]} 46. g5 {[%clk 0:00:07]}  Ng4+ {[%clk 0:00:07]} 47. Kf4 {[%clk 0:00:08]}  Nf2 {[%clk 0:00:08]} 48. Ke3 {[%clk 0:00:06]}  Nd1+ {[%clk 0:00:09]} 49. Kd2 {[%clk 0:00:06]}  Nf2 {[%clk 0:00:09]} 50. Bd5 {[%clk 0:00:07]}  Ng4 {[%clk 0:00:09]} 51. b4 {[%clk 0:00:07]}  cxb4 {[%clk 0:00:08]} 52. cxb4 {[%clk 0:00:08]}  Ne5 {[%clk 0:00:08]} 53. b5 {[%clk 0:00:08]}  Kf8 {[%clk 0:00:09]} 54. b6 {[%clk 0:00:08]}  Nd7 {[%clk 0:00:08]} 55. b7 {[%clk 0:00:08]}  Nb8 {[%clk 0:00:08]} 56. Ke3 {[%clk 0:00:09]}  Ke7 {[%clk 0:00:09]} 57. Kf4 {[%clk 0:00:09]}  Kd6 {[%clk 0:00:10]} 58. Kf5 {[%clk 0:00:09]}  Ke7 {[%clk 0:00:11]} 59. Kg6 {[%clk 0:00:09]}  Kf8 {[%clk 0:00:12]} 60. Kh7 {[%clk 0:00:09]}  Nd7 {[%clk 0:00:10]} 61. e5 {[%clk 0:00:06]}  Ke7 {[%clk 0:00:10]} 62. e6 {[%clk 0:00:06]}  Nf8+ {[%clk 0:00:00]} 63. Kh6 {[%clk 0:00:06]} 1-0


[Site "https://www.chess.com"]

[Event "Titled Tuesday Blitz August 08 Late 2023"]
[White "Slaby, Jerzy"]
[Black "Pavlidou, Ekaterini"]
[WhiteFideId "1121405"]
[BlackFideId "4213262"]
[WhiteElo "2534"]
[BlackElo "2357"]
[Result "1-0"]
[Round "8"]
[TimeControl "180+1"]
[Date "2023.08.08"]
[WhiteClock "0:00:09"]
[BlackClock "0:01:13"]
[Board "84"]

1. e4 {[%clk 0:02:53]}  c5 {[%clk 0:02:57]} 2. Nc3 {[%clk 0:02:52]}  Nc6 {[%clk 0:02:55]} 3. f4 {[%clk 0:02:52]}  g6 {[%clk 0:02:54]} 4. Bb5 {[%clk 0:02:51]}  a6 {[%clk 0:02:52]} 5. Bxc6 {[%clk 0:02:51]}  dxc6 {[%clk 0:02:52]} 6. Nf3 {[%clk 0:02:52]}  Bg7 {[%clk 0:02:52]} 7. d3 {[%clk 0:02:51]}  Nf6 {[%clk 0:02:52]} 8. h3 {[%clk 0:02:48]}  Nd7 {[%clk 0:02:52]} 9. O-O {[%clk 0:02:47]}  e5 {[%clk 0:02:53]} 10. Kh1 {[%clk 0:02:31]}  Qe7 {[%clk 0:02:49]} 11. Qe1 {[%clk 0:02:25]}  h6 {[%clk 0:02:44]} 12. Qg3 {[%clk 0:02:23]}  b5 {[%clk 0:02:40]} 13. f5 {[%clk 0:01:39]}  g5 {[%clk 0:02:37]} 14. Be3 {[%clk 0:01:37]}  Bf6 {[%clk 0:02:36]} 15. a4 {[%clk 0:01:34]}  b4 {[%clk 0:02:32]} 16. Nb1 {[%clk 0:01:34]}  a5 {[%clk 0:02:31]} 17. Nbd2 {[%clk 0:01:34]}  Ba6 {[%clk 0:02:28]} 18. b3 {[%clk 0:01:34]}  O-O-O {[%clk 0:02:22]} 19. Rad1 {[%clk 0:01:16]}  Rdg8 {[%clk 0:02:21]} 20. Nc4 {[%clk 0:00:58]}  Bxc4 {[%clk 0:02:14]} 21. dxc4 {[%clk 0:00:59]}  g4 {[%clk 0:02:12]} 22. hxg4 {[%clk 0:00:57]}  h5 {[%clk 0:02:09]} 23. g5 {[%clk 0:00:56]}  Bxg5 {[%clk 0:02:07]} 24. Nxg5 {[%clk 0:00:36]}  f6 {[%clk 0:02:06]} 25. Qh3 {[%clk 0:00:33]}  fxg5 {[%clk 0:01:59]} 26. f6 {[%clk 0:00:34]}  Qd8 {[%clk 0:01:57]} 27. f7 {[%clk 0:00:32]}  Rg7 {[%clk 0:01:51]} 28. Qe6 {[%clk 0:00:31]}  Kc7 {[%clk 0:01:46]} 29. Rd6 {[%clk 0:00:30]}  g4 {[%clk 0:01:41]} 30. Rxc6+ {[%clk 0:00:26]}  Kb7 {[%clk 0:01:35]} 31. Rd6 {[%clk 0:00:22]}  Kc8 {[%clk 0:01:30]} 32. Rfd1 {[%clk 0:00:18]}  g3 {[%clk 0:01:26]} 33. Rxd7 {[%clk 0:00:17]}  Qh4+ {[%clk 0:01:25]} 34. Qh3 {[%clk 0:00:15]}  Qxe4 {[%clk 0:01:18]} 35. R7d4+ {[%clk 0:00:08]}  Rg4 {[%clk 0:01:17]} 36. Rxe4 {[%clk 0:00:08]}  Kc7 {[%clk 0:01:15]} 37. Rxg4 {[%clk 0:00:08]}  hxg4 {[%clk 0:01:13]} 38. Qxh8 {[%clk 0:00:09]} 1-0


[Site "https://www.chess.com"]

[Event "Titled Tuesday Blitz August 08 Late 2023"]
[White "Carrasco Miranda, Andres"]
[Black "Janaszak, Dawid"]
[WhiteFideId "3405990"]
[BlackFideId "1119206"]
[WhiteElo "2353"]
[BlackElo "2529"]
[Result "1-0"]
[Round "8"]
[TimeControl "180+1"]
[Date "2023.08.08"]
[WhiteClock "0:01:08"]
[BlackClock "0:00:25"]
[Board "85"]

1. d4 {[%clk 0:03:00]}  Nf6 {[%clk 0:02:55]} 2. c4 {[%clk 0:03:00]}  c5 {[%clk 0:02:55]} 3. d5 {[%clk 0:03:00]}  b5 {[%clk 0:02:56]} 4. Qc2 {[%clk 0:03:00]}  b4 {[%clk 0:02:52]} 5. e4 {[%clk 0:02:58]}  d6 {[%clk 0:02:51]} 6. Bd3 {[%clk 0:02:54]}  g6 {[%clk 0:02:50]} 7. Nf3 {[%clk 0:02:54]}  Bg7 {[%clk 0:02:49]} 8. O-O {[%clk 0:02:54]}  Bg4 {[%clk 0:02:49]} 9. Nfd2 {[%clk 0:02:50]}  O-O {[%clk 0:02:48]} 10. a3 {[%clk 0:02:50]}  a5 {[%clk 0:02:47]} 11. axb4 {[%clk 0:02:50]}  cxb4 {[%clk 0:02:48]} 12. Re1 {[%clk 0:02:42]}  Na6 {[%clk 0:02:47]} 13. Nb3 {[%clk 0:02:35]}  Nc5 {[%clk 0:02:35]} 14. Nxc5 {[%clk 0:02:34]}  dxc5 {[%clk 0:02:36]} 15. e5 {[%clk 0:02:30]}  Nd7 {[%clk 0:02:27]} 16. h3 {[%clk 0:02:29]}  Bxh3 {[%clk 0:02:24]} 17. gxh3 {[%clk 0:02:28]}  Nxe5 {[%clk 0:02:24]} 18. Be4 {[%clk 0:02:15]}  e6 {[%clk 0:02:21]} 19. Bf4 {[%clk 0:02:11]}  Qh4 {[%clk 0:02:13]} 20. Bg3 {[%clk 0:02:08]}  Qxh3 {[%clk 0:02:14]} 21. Bg2 {[%clk 0:02:07]}  Qh5 {[%clk 0:02:09]} 22. Nd2 {[%clk 0:02:05]}  Rae8 {[%clk 0:01:51]} 23. Rxa5 {[%clk 0:01:50]}  exd5 {[%clk 0:01:46]} 24. cxd5 {[%clk 0:01:48]}  Ng4 {[%clk 0:01:35]} 25. Rxe8 {[%clk 0:01:45]}  Rxe8 {[%clk 0:01:36]} 26. d6 {[%clk 0:01:42]}  Bd4 {[%clk 0:01:13]} 27. Nf3 {[%clk 0:01:29]}  b3 {[%clk 0:00:35]} 28. d7 {[%clk 0:01:10]}  Rd8 {[%clk 0:00:31]} 29. Qe4 {[%clk 0:01:10]}  Re8 {[%clk 0:00:25]} 30. dxe8=Q+ {[%clk 0:01:08]} 1-0


[Site "https://www.chess.com"]

[Event "Titled Tuesday Blitz August 08 Late 2023"]
[White "Lopez Gracia, Fernando"]
[Black "Sadilek, Peter"]
[WhiteFideId "2207184"]
[BlackFideId "1616439"]
[WhiteElo "2344"]
[BlackElo "2479"]
[Result "0-1"]
[Round "8"]
[TimeControl "180+1"]
[Date "2023.08.08"]
[WhiteClock "0:00:12"]
[BlackClock "0:00:34"]
[Board "87"]

1. e4 {[%clk 0:02:56]}  e6 {[%clk 0:02:58]} 2. d4 {[%clk 0:02:56]}  d5 {[%clk 0:02:59]} 3. e5 {[%clk 0:02:56]}  c5 {[%clk 0:02:59]} 4. c3 {[%clk 0:02:57]}  Nc6 {[%clk 0:02:59]} 5. Nf3 {[%clk 0:02:58]}  Nge7 {[%clk 0:03:00]} 6. dxc5 {[%clk 0:02:40]}  Ng6 {[%clk 0:02:03]} 7. Bb5 {[%clk 0:02:39]}  Bxc5 {[%clk 0:02:02]} 8. h4 {[%clk 0:02:33]}  Qb6 {[%clk 0:01:55]} 9. Qe2 {[%clk 0:02:29]}  Bxf2+ {[%clk 0:01:54]} 10. Qxf2 {[%clk 0:02:19]}  Qxb5 {[%clk 0:01:54]} 11. h5 {[%clk 0:02:19]}  Ngxe5 {[%clk 0:01:53]} 12. Nxe5 {[%clk 0:02:10]}  Nxe5 {[%clk 0:01:54]} 13. Qg3 {[%clk 0:02:11]}  Nd3+ {[%clk 0:01:43]} 14. Kd2 {[%clk 0:02:11]}  Nxc1 {[%clk 0:01:41]} 15. Kxc1 {[%clk 0:02:12]}  Bd7 {[%clk 0:01:23]} 16. Na3 {[%clk 0:02:06]}  Qe2 {[%clk 0:01:20]} 17. Qg5 {[%clk 0:01:46]}  f6 {[%clk 0:01:10]} 18. Qxg7 {[%clk 0:01:45]}  Qe3+ {[%clk 0:01:07]} 19. Kb1 {[%clk 0:01:36]}  O-O-O {[%clk 0:01:05]} 20. Nc2 {[%clk 0:01:36]}  Qg5 {[%clk 0:00:58]} 21. Qxg5 {[%clk 0:01:33]}  fxg5 {[%clk 0:00:59]} 22. Ne3 {[%clk 0:01:26]}  e5 {[%clk 0:00:56]} 23. Kc2 {[%clk 0:01:20]}  d4 {[%clk 0:00:56]} 24. Nc4 {[%clk 0:01:20]}  Bf5+ {[%clk 0:00:55]} 25. Kd2 {[%clk 0:01:19]}  dxc3+ {[%clk 0:00:55]} 26. Kxc3 {[%clk 0:01:20]}  Rd3+ {[%clk 0:00:50]} 27. Kb4 {[%clk 0:01:19]}  Rd4 {[%clk 0:00:48]} 28. Rad1 {[%clk 0:01:13]}  Rhd8 {[%clk 0:00:47]} 29. Rxd4 {[%clk 0:01:08]}  Rxd4 {[%clk 0:00:48]} 30. Kc5 {[%clk 0:01:07]}  b6+ {[%clk 0:00:47]} 31. Kb4 {[%clk 0:00:54]}  a5+ {[%clk 0:00:47]} 32. Kb5 {[%clk 0:00:38]}  Kb7 {[%clk 0:00:35]} 33. Nxe5 {[%clk 0:00:12]}  Rb4# {[%clk 0:00:34]} 0-1


[Site "https://www.chess.com"]

[Event "Titled Tuesday Blitz August 08 Late 2023"]
[White "Fernandez Siles, Luis"]
[Black "ChessSG1"]
[WhiteFideId "2209420"]
[WhiteElo "2337"]
[BlackElo "2470"]
[Result "1-0"]
[Round "8"]
[TimeControl "180+1"]
[Date "2023.08.08"]
[WhiteClock "0:00:23"]
[BlackClock "0:00:00"]
[Board "89"]

1. e4 {[%clk 0:03:00]}  c5 {[%clk 0:02:59]} 2. Nf3 {[%clk 0:03:00]}  e6 {[%clk 0:02:59]} 3. c3 {[%clk 0:02:56]}  Nf6 {[%clk 0:02:58]} 4. e5 {[%clk 0:02:55]}  Nd5 {[%clk 0:02:58]} 5. Bc4 {[%clk 0:02:55]}  d6 {[%clk 0:02:58]} 6. d4 {[%clk 0:02:54]}  cxd4 {[%clk 0:02:59]} 7. cxd4 {[%clk 0:02:55]}  Be7 {[%clk 0:02:59]} 8. O-O {[%clk 0:02:54]}  O-O {[%clk 0:02:59]} 9. Qe2 {[%clk 0:02:54]}  b6 {[%clk 0:03:00]} 10. Nc3 {[%clk 0:02:51]}  Nxc3 {[%clk 0:02:51]} 11. bxc3 {[%clk 0:02:50]}  Nd7 {[%clk 0:02:49]} 12. Bd3 {[%clk 0:02:46]}  Bb7 {[%clk 0:02:41]} 13. exd6 {[%clk 0:02:44]}  Bxd6 {[%clk 0:02:39]} 14. Bd2 {[%clk 0:02:08]}  Qc7 {[%clk 0:02:38]} 15. h3 {[%clk 0:02:08]}  Bf4 {[%clk 0:02:21]} 16. Ng5 {[%clk 0:01:49]}  Nf6 {[%clk 0:02:13]} 17. Bxf4 {[%clk 0:01:34]}  Qxf4 {[%clk 0:02:12]} 18. Qe3 {[%clk 0:01:35]}  Qxe3 {[%clk 0:02:05]} 19. fxe3 {[%clk 0:01:36]}  h6 {[%clk 0:02:05]} 20. Nf3 {[%clk 0:01:35]}  Nd5 {[%clk 0:02:06]} 21. Be4 {[%clk 0:01:33]}  Ba6 {[%clk 0:02:04]} 22. Bxd5 {[%clk 0:01:32]}  exd5 {[%clk 0:02:03]} 23. Rfe1 {[%clk 0:01:26]}  Rac8 {[%clk 0:02:01]} 24. Rac1 {[%clk 0:01:26]}  Rc4 {[%clk 0:01:54]} 25. e4 {[%clk 0:01:15]}  dxe4 {[%clk 0:01:47]} 26. Rxe4 {[%clk 0:01:11]}  Ra4 {[%clk 0:01:47]} 27. Re7 {[%clk 0:01:00]}  Bb5 {[%clk 0:01:21]} 28. Ne5 {[%clk 0:00:54]}  Rxa2 {[%clk 0:01:05]} 29. c4 {[%clk 0:00:54]}  Be8 {[%clk 0:01:00]} 30. c5 {[%clk 0:00:53]}  f6 {[%clk 0:00:55]} 31. c6 {[%clk 0:00:36]}  fxe5 {[%clk 0:00:19]} 32. c7 {[%clk 0:00:31]}  Bg6 {[%clk 0:00:03]} 33. c8=Q {[%clk 0:00:26]}  Rxc8 {[%clk 0:00:04]} 34. Rxc8+ {[%clk 0:00:26]}  Kh7 {[%clk 0:00:05]} 35. Rxe5 {[%clk 0:00:26]}  Ra1+ {[%clk 0:00:02]} 36. Kf2 {[%clk 0:00:25]}  a5 {[%clk 0:00:02]} 37. d5 {[%clk 0:00:25]}  Ra2+ {[%clk 0:00:02]} 38. Kg3 {[%clk 0:00:23]}  a4 {[%clk 0:00:00]} 39. d6 {[%clk 0:00:23]} 1-0


[Site "https://www.chess.com"]